[Event "Titled Tuesday Blitz February 14 Late 2023"]
[White "Madaminov, Mukhiddin"]
[Black "Goltsev, Dmitry"]
[WhiteFideId "14210703"]
[BlackFideId "24176710"]
[WhiteElo "2422"]
[BlackElo "2269"]
[Result "0-1"]
[Round "10"]
[TimeControl "180+2"]
[Date "2023.02.14"]
[WhiteClock "0:00:03"]
[BlackClock "0:00:04"]

1. d4 {[%clk 0:03:00]}  Nf6 {[%clk 0:02:59]} 2. Nc3 {[%clk 0:03:01]}  e6 {[%clk 0:03:00]} 3. Bf4 {[%clk 0:03:00]}  d5 {[%clk 0:03:01]} 4. Nb5 {[%clk 0:03:00]}  Na6 {[%clk 0:03:00]} 5. e3 {[%clk 0:03:01]}  c6 {[%clk 0:03:00]} 6. Nc3 {[%clk 0:03:01]}  Nc7 {[%clk 0:03:01]} 7. Nf3 {[%clk 0:02:58]}  Bd6 {[%clk 0:03:02]} 8. Ne5 {[%clk 0:02:59]}  O-O {[%clk 0:03:01]} 9. Qf3 {[%clk 0:02:59]}  Bxe5 {[%clk 0:02:57]} 10. Bxe5 {[%clk 0:02:53]}  Nd7 {[%clk 0:02:55]} 11. Bf4 {[%clk 0:02:53]}  Ne8 {[%clk 0:02:53]} 12. Bd3 {[%clk 0:02:45]}  f5 {[%clk 0:02:53]} 13. Ne2 {[%clk 0:02:37]}  Nef6 {[%clk 0:02:53]} 14. Qh3 {[%clk 0:02:21]}  Ne4 {[%clk 0:02:50]} 15. f3 {[%clk 0:02:12]}  Ng5 {[%clk 0:02:48]} 16. Qg3 {[%clk 0:01:50]}  Nf7 {[%clk 0:02:47]} 17. O-O-O {[%clk 0:01:50]}  a5 {[%clk 0:02:42]} 18. e4 {[%clk 0:01:49]}  Nf6 {[%clk 0:02:39]} 19. exf5 {[%clk 0:01:42]}  exf5 {[%clk 0:02:40]} 20. Bc7 {[%clk 0:01:30]}  Qd7 {[%clk 0:02:30]} 21. Bb6 {[%clk 0:01:28]}  Ne4 {[%clk 0:02:23]} 22. Qe1 {[%clk 0:01:17]}  Nfd6 {[%clk 0:02:21]} 23. Ng3 {[%clk 0:01:12]}  Nf6 {[%clk 0:02:17]} 24. a4 {[%clk 0:01:08]}  Nc4 {[%clk 0:02:14]} 25. Bc5 {[%clk 0:00:48]}  Re8 {[%clk 0:02:10]} 26. Qc3 {[%clk 0:00:48]}  b6 {[%clk 0:02:05]} 27. Ba3 {[%clk 0:00:40]}  b5 {[%clk 0:01:50]} 28. Bc5 {[%clk 0:00:39]}  b4 {[%clk 0:01:47]} 29. Qb3 {[%clk 0:00:39]}  Qf7 {[%clk 0:01:47]} 30. Rde1 {[%clk 0:00:34]}  f4 {[%clk 0:01:42]} 31. Nf5 {[%clk 0:00:33]}  Bxf5 {[%clk 0:01:40]} 32. Bxf5 {[%clk 0:00:34]}  Re3 {[%clk 0:01:40]} 33. Rxe3 {[%clk 0:00:30]}  Nxe3 {[%clk 0:01:41]} 34. Bh3 {[%clk 0:00:29]}  Qg6 {[%clk 0:01:39]} 35. Qd3 {[%clk 0:00:18]}  Qxd3 {[%clk 0:01:36]} 36. cxd3 {[%clk 0:00:19]}  Kf7 {[%clk 0:01:32]} 37. Kd2 {[%clk 0:00:17]}  g5 {[%clk 0:01:30]} 38. g3 {[%clk 0:00:17]}  g4 {[%clk 0:01:02]} 39. fxg4 {[%clk 0:00:15]}  Nexg4 {[%clk 0:01:02]} 40. Rf1 {[%clk 0:00:13]}  fxg3 {[%clk 0:00:58]} 41. hxg3 {[%clk 0:00:04]}  Kg6 {[%clk 0:00:58]} 42. Rf4 {[%clk 0:00:02]}  h5 {[%clk 0:00:58]} 43. Be7 {[%clk 0:00:03]}  Re8 {[%clk 0:00:56]} 44. Bxf6 {[%clk 0:00:02]}  Nxf6 {[%clk 0:00:57]} 45. Bf5+ {[%clk 0:00:03]}  Kg5 {[%clk 0:00:56]} 46. Bh3 {[%clk 0:00:03]}  Re7 {[%clk 0:00:54]} 47. b3 {[%clk 0:00:04]}  Kg6 {[%clk 0:00:52]} 48. Bf5+ {[%clk 0:00:04]}  Kg7 {[%clk 0:00:52]} 49. Bc8 {[%clk 0:00:03]}  Kg6 {[%clk 0:00:47]} 50. Bh3 {[%clk 0:00:03]}  Kg5 {[%clk 0:00:44]} 51. Rf5+ {[%clk 0:00:03]}  Kg6 {[%clk 0:00:44]} 52. Re5 {[%clk 0:00:04]}  Kf7 {[%clk 0:00:36]} 53. Ke3 {[%clk 0:00:04]}  Rc7 {[%clk 0:00:28]} 54. Kf4 {[%clk 0:00:03]}  c5 {[%clk 0:00:28]} 55. Be6+ {[%clk 0:00:04]}  Kg7 {[%clk 0:00:27]} 56. Rg5+ {[%clk 0:00:03]}  Kh8 {[%clk 0:00:20]} 57. Bxd5 {[%clk 0:00:03]}  cxd4 {[%clk 0:00:16]} 58. Bc4 {[%clk 0:00:02]}  Re7 {[%clk 0:00:10]} 59. Kf5 {[%clk 0:00:03]}  Nd7 {[%clk 0:00:07]} 60. Rxh5+ {[%clk 0:00:03]}  Kg7 {[%clk 0:00:07]} 61. Rg5+ {[%clk 0:00:03]}  Kh6 {[%clk 0:00:08]} 62. Rg6+ {[%clk 0:00:04]}  Kh5 {[%clk 0:00:07]} 63. Re6 {[%clk 0:00:05]}  Rf7+ {[%clk 0:00:07]} 64. Ke4 {[%clk 0:00:05]}  Nc5+ {[%clk 0:00:07]} 65. Kxd4 {[%clk 0:00:03]}  Nxe6+ {[%clk 0:00:07]} 66. Bxe6 {[%clk 0:00:04]}  Rc7 {[%clk 0:00:07]} 67. Ke5 {[%clk 0:00:04]}  Rc3 {[%clk 0:00:06]} 68. d4 {[%clk 0:00:04]}  Rxg3 {[%clk 0:00:06]} 69. d5 {[%clk 0:00:04]}  Rxb3 {[%clk 0:00:06]} 70. d6 {[%clk 0:00:04]}  Re3+ {[%clk 0:00:05]} 71. Kd5 {[%clk 0:00:03]}  Rd3+ {[%clk 0:00:06]} 72. Ke5 {[%clk 0:00:02]}  b3 {[%clk 0:00:05]} 73. Bd5 {[%clk 0:00:01]}  b2 {[%clk 0:00:05]} 74. d7 {[%clk 0:00:02]}  Rxd5+ {[%clk 0:00:05]} 75. Kxd5 {[%clk 0:00:02]}  b1=Q {[%clk 0:00:06]} 76. Kc6 {[%clk 0:00:03]}  Qe4+ {[%clk 0:00:05]} 77. Kc7 {[%clk 0:00:03]}  Qc4+ {[%clk 0:00:05]} 78. Kd6 {[%clk 0:00:04]}  Qxa4 {[%clk 0:00:04]} 79. d8=Q {[%clk 0:00:03]}  Qd4+ {[%clk 0:00:04]} 0-1


[Site "https://www.chess.com"]

[Event "Titled Tuesday Blitz February 14 Late 2023"]
[White "Li, Ruifeng"]
[Black "EREBUNI91"]
[WhiteFideId "2061074"]
[WhiteElo "2541"]
[BlackElo "2724"]
[Result "1-0"]
[Round "10"]
[TimeControl "180+2"]
[Date "2023.02.14"]
[WhiteClock "0:00:22"]
[BlackClock "0:01:22"]

1. b3 {[%clk 0:03:00]}  d6 {[%clk 0:02:57]} 2. Bb2 {[%clk 0:03:01]}  c5 {[%clk 0:02:58]} 3. e3 {[%clk 0:03:01]}  e5 {[%clk 0:02:57]} 4. d4 {[%clk 0:03:01]}  cxd4 {[%clk 0:02:56]} 5. exd4 {[%clk 0:03:01]}  e4 {[%clk 0:02:56]} 6. d5 {[%clk 0:03:02]}  Nf6 {[%clk 0:02:54]} 7. c4 {[%clk 0:02:57]}  Bf5 {[%clk 0:02:51]} 8. Ne2 {[%clk 0:02:55]}  Nbd7 {[%clk 0:02:49]} 9. Nd4 {[%clk 0:02:44]}  Bg6 {[%clk 0:02:47]} 10. Be2 {[%clk 0:02:44]}  Be7 {[%clk 0:02:46]} 11. Nc3 {[%clk 0:02:43]}  O-O {[%clk 0:02:46]} 12. O-O {[%clk 0:02:43]}  Re8 {[%clk 0:02:42]} 13. Kh1 {[%clk 0:02:32]}  Bf8 {[%clk 0:02:41]} 14. Qd2 {[%clk 0:02:27]}  Ne5 {[%clk 0:02:36]} 15. Nd1 {[%clk 0:02:27]}  Nfg4 {[%clk 0:02:21]} 16. Ne3 {[%clk 0:02:23]}  Nxe3 {[%clk 0:02:18]} 17. fxe3 {[%clk 0:02:18]}  Qh4 {[%clk 0:02:09]} 18. Rf4 {[%clk 0:02:10]}  Qh6 {[%clk 0:02:05]} 19. Nf5 {[%clk 0:01:41]}  Bxf5 {[%clk 0:01:46]} 20. Rxf5 {[%clk 0:01:42]}  g6 {[%clk 0:01:45]} 21. Rf4 {[%clk 0:01:22]}  Bg7 {[%clk 0:01:44]} 22. Raf1 {[%clk 0:01:21]}  f5 {[%clk 0:01:42]} 23. b4 {[%clk 0:01:08]}  Rac8 {[%clk 0:01:39]} 24. c5 {[%clk 0:00:57]}  dxc5 {[%clk 0:01:32]} 25. d6 {[%clk 0:00:58]}  Red8 {[%clk 0:01:27]} 26. Qd5+ {[%clk 0:00:54]}  Nf7 {[%clk 0:01:22]} 27. Bc4 {[%clk 0:00:22]} 1-0


[Site "https://www.chess.com"]

[Event "Titled Tuesday Blitz February 14 Late 2023"]
[White "Baskakov, Egor"]
[Black "Klose, Eli"]
[WhiteFideId "24197866"]
[BlackFideId "16242955"]
[WhiteElo "2215"]
[BlackElo "1519"]
[Result "1-0"]
[Round "10"]
[TimeControl "180+2"]
[Date "2023.02.14"]
[WhiteClock "0:00:13"]
[BlackClock "0:00:02"]

1. e4 {[%clk 0:03:00]}  e6 {[%clk 0:02:37]} 2. Nc3 {[%clk 0:03:00]}  d5 {[%clk 0:02:37]} 3. g3 {[%clk 0:03:01]}  Nf6 {[%clk 0:02:30]} 4. Bg2 {[%clk 0:02:58]}  Be7 {[%clk 0:02:30]} 5. Nge2 {[%clk 0:02:58]}  O-O {[%clk 0:02:29]} 6. d4 {[%clk 0:02:58]}  b6 {[%clk 0:02:19]} 7. exd5 {[%clk 0:02:56]}  exd5 {[%clk 0:02:17]} 8. O-O {[%clk 0:02:57]}  c6 {[%clk 0:02:15]} 9. h3 {[%clk 0:02:55]}  h6 {[%clk 0:02:08]} 10. Re1 {[%clk 0:02:55]}  Bf5 {[%clk 0:02:07]} 11. Nf4 {[%clk 0:02:55]}  Re8 {[%clk 0:02:04]} 12. Nd3 {[%clk 0:02:55]}  Nbd7 {[%clk 0:01:55]} 13. Bf4 {[%clk 0:02:54]}  Nf8 {[%clk 0:01:49]} 14. Qd2 {[%clk 0:02:51]}  Ne6 {[%clk 0:01:44]} 15. Be5 {[%clk 0:02:48]}  Nd7 {[%clk 0:01:34]} 16. Nf4 {[%clk 0:02:47]}  Nxe5 {[%clk 0:01:27]} 17. Rxe5 {[%clk 0:02:45]}  Nxf4 {[%clk 0:01:22]} 18. Rxf5 {[%clk 0:02:34]}  Ng6 {[%clk 0:01:16]} 19. Re1 {[%clk 0:02:30]}  Bg5 {[%clk 0:01:09]} 20. Qd1 {[%clk 0:02:22]}  Rxe1+ {[%clk 0:01:06]} 21. Qxe1 {[%clk 0:02:23]}  Qe8 {[%clk 0:01:06]} 22. Qd1 {[%clk 0:02:15]}  Qd7 {[%clk 0:00:46]} 23. Rf3 {[%clk 0:02:14]}  Re8 {[%clk 0:00:31]} 24. h4 {[%clk 0:02:14]}  Bf6 {[%clk 0:00:31]} 25. Rd3 {[%clk 0:02:07]}  Nf8 {[%clk 0:00:23]} 26. Bf3 {[%clk 0:02:03]}  Ne6 {[%clk 0:00:22]} 27. Ne2 {[%clk 0:02:03]}  Qd6 {[%clk 0:00:20]} 28. Re3 {[%clk 0:01:57]}  Nc7 {[%clk 0:00:20]} 29. Rxe8+ {[%clk 0:01:55]}  Nxe8 {[%clk 0:00:21]} 30. c3 {[%clk 0:01:55]}  Kf8 {[%clk 0:00:21]} 31. Qa4 {[%clk 0:01:55]}  a5 {[%clk 0:00:20]} 32. Kg2 {[%clk 0:01:56]}  Qc7 {[%clk 0:00:19]} 33. c4 {[%clk 0:01:50]}  Qd6 {[%clk 0:00:12]} 34. cxd5 {[%clk 0:01:49]}  cxd5 {[%clk 0:00:13]} 35. Nf4 {[%clk 0:01:47]}  Nc7 {[%clk 0:00:12]} 36. a3 {[%clk 0:01:41]}  g6 {[%clk 0:00:12]} 37. h5 {[%clk 0:01:39]}  g5 {[%clk 0:00:12]} 38. Ne2 {[%clk 0:01:36]}  Ne6 {[%clk 0:00:12]} 39. Bg4 {[%clk 0:01:25]}  Kg7 {[%clk 0:00:12]} 40. Bf5 {[%clk 0:01:20]}  b5 {[%clk 0:00:10]} 41. Qd1 {[%clk 0:01:16]}  Qb6 {[%clk 0:00:08]} 42. Bxe6 {[%clk 0:01:15]}  Qxe6 {[%clk 0:00:09]} 43. Qd3 {[%clk 0:01:14]}  Qc6 {[%clk 0:00:08]} 44. b3 {[%clk 0:01:12]}  a4 {[%clk 0:00:08]} 45. bxa4 {[%clk 0:01:11]}  bxa4 {[%clk 0:00:09]} 46. Nc3 {[%clk 0:01:06]}  Be7 {[%clk 0:00:07]} 47. Nb5 {[%clk 0:00:51]}  Qc1 {[%clk 0:00:06]} 48. Qf3 {[%clk 0:00:42]}  Qc2 {[%clk 0:00:04]} 49. Qxd5 {[%clk 0:00:35]}  Qd3 {[%clk 0:00:05]} 50. Nd6 {[%clk 0:00:29]}  Bxd6 {[%clk 0:00:03]} 51. Qxd6 {[%clk 0:00:30]}  Qe4+ {[%clk 0:00:03]} 52. Kg1 {[%clk 0:00:31]}  Qb1+ {[%clk 0:00:03]} 53. Kh2 {[%clk 0:00:31]}  Qd1 {[%clk 0:00:04]} 54. Qe5+ {[%clk 0:00:30]}  Kg8 {[%clk 0:00:04]} 55. Kg2 {[%clk 0:00:22]}  Qd3 {[%clk 0:00:04]} 56. Qe8+ {[%clk 0:00:18]}  Kg7 {[%clk 0:00:04]} 57. Qxa4 {[%clk 0:00:18]}  Qe4+ {[%clk 0:00:04]} 58. Kh2 {[%clk 0:00:18]}  g4 {[%clk 0:00:04]} 59. Qd1 {[%clk 0:00:13]}  Qf5 {[%clk 0:00:02]} 60. Kg1 {[%clk 0:00:13]}  Qxh5 {[%clk 0:00:02]} 61. d5 {[%clk 0:00:13]} 1-0


[Site "https://www.chess.com"]

[Event "Titled Tuesday Blitz February 14 Late 2023"]
[White "Vlassov, Nikolai"]
[Black "Gharibyan, Mamikon"]
[WhiteFideId "4103360"]
[BlackFideId "13308300"]
[WhiteElo "2283"]
[BlackElo "2500"]
[Result "1/2-1/2"]
[Round "10"]
[TimeControl "180+2"]
[Date "2023.02.14"]
[WhiteClock "0:00:13"]
[BlackClock "0:00:02"]

1. e4 {[%clk 0:03:00]}  e5 {[%clk 0:02:56]} 2. Bc4 {[%clk 0:03:00]}  Nf6 {[%clk 0:02:55]} 3. d3 {[%clk 0:03:00]}  c6 {[%clk 0:02:51]} 4. Nf3 {[%clk 0:03:00]}  d5 {[%clk 0:02:47]} 5. Bb3 {[%clk 0:03:00]}  Bb4+ {[%clk 0:02:47]} 6. c3 {[%clk 0:03:00]}  Bd6 {[%clk 0:02:45]} 7. Bg5 {[%clk 0:02:59]}  Be6 {[%clk 0:02:45]} 8. d4 {[%clk 0:02:59]}  Nbd7 {[%clk 0:02:33]} 9. exd5 {[%clk 0:02:54]}  cxd5 {[%clk 0:02:26]} 10. dxe5 {[%clk 0:02:54]}  Nxe5 {[%clk 0:02:25]} 11. Nxe5 {[%clk 0:02:52]}  Bxe5 {[%clk 0:02:26]} 12. Nd2 {[%clk 0:02:46]}  h6 {[%clk 0:02:22]} 13. Bh4 {[%clk 0:02:45]}  O-O {[%clk 0:02:14]} 14. O-O {[%clk 0:02:38]}  Qd6 {[%clk 0:02:01]} 15. Nf3 {[%clk 0:02:18]}  Ne4 {[%clk 0:01:45]} 16. Nxe5 {[%clk 0:02:08]}  Qxe5 {[%clk 0:01:46]} 17. Re1 {[%clk 0:02:08]}  Qf4 {[%clk 0:01:29]} 18. Bg3 {[%clk 0:01:58]}  Qg5 {[%clk 0:01:24]} 19. Qd4 {[%clk 0:01:45]}  Rfe8 {[%clk 0:01:07]} 20. Rad1 {[%clk 0:01:44]}  a5 {[%clk 0:01:02]} 21. Bxd5 {[%clk 0:01:29]}  Bxd5 {[%clk 0:00:53]} 22. Qxd5 {[%clk 0:01:29]}  Qxd5 {[%clk 0:00:50]} 23. Rxd5 {[%clk 0:01:26]}  Nxc3 {[%clk 0:00:49]} 24. Rde5 {[%clk 0:01:11]}  Rxe5 {[%clk 0:00:47]} 25. Rxe5 {[%clk 0:01:12]}  Nxa2 {[%clk 0:00:46]} 26. Rb5 {[%clk 0:01:12]}  a4 {[%clk 0:00:30]} 27. Rxb7 {[%clk 0:01:10]}  a3 {[%clk 0:00:31]} 28. bxa3 {[%clk 0:01:08]}  Rxa3 {[%clk 0:00:31]} 29. h3 {[%clk 0:01:05]}  Nc3 {[%clk 0:00:29]} 30. Kh2 {[%clk 0:00:49]}  Ne4 {[%clk 0:00:29]} 31. Re7 {[%clk 0:00:44]}  Nd2 {[%clk 0:00:18]} 32. Re1 {[%clk 0:00:39]}  Kh7 {[%clk 0:00:15]} 33. Bf4 {[%clk 0:00:38]}  Nc4 {[%clk 0:00:14]} 34. g4 {[%clk 0:00:37]}  g5 {[%clk 0:00:09]} 35. Bg3 {[%clk 0:00:36]}  Rf3 {[%clk 0:00:08]} 36. Kg2 {[%clk 0:00:35]}  Rf6 {[%clk 0:00:08]} 37. Re7 {[%clk 0:00:34]}  Kg6 {[%clk 0:00:07]} 38. h4 {[%clk 0:00:34]}  gxh4 {[%clk 0:00:07]} 39. Bxh4 {[%clk 0:00:34]}  Re6 {[%clk 0:00:07]} 40. Rc7 {[%clk 0:00:30]}  Ne5 {[%clk 0:00:07]} 41. Kg3 {[%clk 0:00:29]}  h5 {[%clk 0:00:06]} 42. f4 {[%clk 0:00:29]}  Nxg4 {[%clk 0:00:05]} 43. f5+ {[%clk 0:00:24]}  Kxf5 {[%clk 0:00:05]} 44. Rxf7+ {[%clk 0:00:24]}  Kg6 {[%clk 0:00:05]} 45. Rf8 {[%clk 0:00:22]}  Nh6 {[%clk 0:00:05]} 46. Bd8 {[%clk 0:00:20]}  Nf5+ {[%clk 0:00:04]} 47. Kf4 {[%clk 0:00:21]}  Nh6 {[%clk 0:00:04]} 48. Bg5 {[%clk 0:00:18]}  Nf7 {[%clk 0:00:03]} 49. Bh4 {[%clk 0:00:17]}  Rc6 {[%clk 0:00:03]} 50. Rg8+ {[%clk 0:00:16]}  Kh7 {[%clk 0:00:03]} 51. Rg2 {[%clk 0:00:13]}  Rc4+ {[%clk 0:00:03]} 52. Kg3 {[%clk 0:00:13]}  Rg4+ {[%clk 0:00:02]} 53. Kh3 {[%clk 0:00:14]}  Re4 {[%clk 0:00:03]} 54. Bf6 {[%clk 0:00:12]}  Rg4 {[%clk 0:00:01]} 55. Rxg4 {[%clk 0:00:12]}  hxg4+ {[%clk 0:00:02]} 56. Kxg4 {[%clk 0:00:13]} 1/2-1/2


[Site "https://www.chess.com"]

[Event "Titled Tuesday Blitz February 14 Late 2023"]
[White "Al-Tarboush, Ward"]
[Black "Samsonkin, Artiom"]
[WhiteFideId "7601450"]
[BlackFideId "13503111"]
[WhiteElo "2256"]
[BlackElo "2420"]
[Result "1/2-1/2"]
[Round "10"]
[TimeControl "180+2"]
[Date "2023.02.14"]
[WhiteClock "0:00:06"]
[BlackClock "0:00:08"]

1. e4 {[%clk 0:03:00]}  d5 {[%clk 0:02:58]} 2. exd5 {[%clk 0:03:00]}  Qxd5 {[%clk 0:02:59]} 3. Nc3 {[%clk 0:02:59]}  Qa5 {[%clk 0:03:00]} 4. d4 {[%clk 0:02:59]}  Nf6 {[%clk 0:03:00]} 5. Nf3 {[%clk 0:02:59]}  Bg4 {[%clk 0:03:00]} 6. h3 {[%clk 0:02:45]}  Bh5 {[%clk 0:03:01]} 7. g4 {[%clk 0:02:44]}  Bg6 {[%clk 0:03:01]} 8. Ne5 {[%clk 0:02:43]}  e6 {[%clk 0:03:02]} 9. Bg2 {[%clk 0:02:42]}  c6 {[%clk 0:02:59]} 10. h4 {[%clk 0:02:36]}  Be4 {[%clk 0:02:38]} 11. Bxe4 {[%clk 0:02:28]}  Nxe4 {[%clk 0:02:38]} 12. Qf3 {[%clk 0:02:28]}  Nd6 {[%clk 0:02:24]} 13. Bd2 {[%clk 0:02:17]}  Qc7 {[%clk 0:02:22]} 14. O-O-O {[%clk 0:02:04]}  Nd7 {[%clk 0:02:12]} 15. Bf4 {[%clk 0:01:50]}  Nb6 {[%clk 0:02:12]} 16. Rhe1 {[%clk 0:01:47]}  O-O-O {[%clk 0:02:12]} 17. Bg3 {[%clk 0:01:40]}  f6 {[%clk 0:01:39]} 18. Nd3 {[%clk 0:01:32]}  Qf7 {[%clk 0:01:38]} 19. Nc5 {[%clk 0:01:24]}  Re8 {[%clk 0:01:38]} 20. a4 {[%clk 0:01:08]}  h5 {[%clk 0:01:03]} 21. a5 {[%clk 0:01:05]}  Nd5 {[%clk 0:01:04]} 22. a6 {[%clk 0:01:02]}  b6 {[%clk 0:01:00]} 23. Nxd5 {[%clk 0:00:29]}  exd5 {[%clk 0:01:01]} 24. Rxe8+ {[%clk 0:00:23]}  Qxe8 {[%clk 0:01:02]} 25. Nb7 {[%clk 0:00:12]}  Qe4 {[%clk 0:00:40]} 26. Qc3 {[%clk 0:00:10]}  Nc4 {[%clk 0:00:28]} 27. Re1 {[%clk 0:00:08]}  Qxg4 {[%clk 0:00:14]} 28. Re8+ {[%clk 0:00:08]}  Kd7 {[%clk 0:00:15]} 29. Rd8+ {[%clk 0:00:09]}  Ke6 {[%clk 0:00:16]} 30. Qe1+ {[%clk 0:00:02]}  Kf7 {[%clk 0:00:16]} 31. b3 {[%clk 0:00:02]}  Ba3+ {[%clk 0:00:16]} 32. Kb1 {[%clk 0:00:03]}  Rxd8 {[%clk 0:00:12]} 33. Nxd8+ {[%clk 0:00:04]}  Kg6 {[%clk 0:00:13]} 34. bxc4 {[%clk 0:00:04]}  Qxd4 {[%clk 0:00:13]} 35. Qe8+ {[%clk 0:00:04]}  Kh6 {[%clk 0:00:07]} 36. Nf7+ {[%clk 0:00:03]}  Kh7 {[%clk 0:00:08]} 37. Qh8+ {[%clk 0:00:02]}  Kg6 {[%clk 0:00:09]} 38. Ne5+ {[%clk 0:00:03]}  fxe5 {[%clk 0:00:09]} 39. Qe8+ {[%clk 0:00:03]}  Kh6 {[%clk 0:00:09]} 40. Qe6+ {[%clk 0:00:03]}  Kh7 {[%clk 0:00:09]} 41. Qf5+ {[%clk 0:00:04]}  Kg8 {[%clk 0:00:09]} 42. Qe6+ {[%clk 0:00:04]}  Kf8 {[%clk 0:00:09]} 43. Qf5+ {[%clk 0:00:04]}  Ke7 {[%clk 0:00:09]} 44. Qxe5+ {[%clk 0:00:05]}  Qxe5 {[%clk 0:00:09]} 45. Bxe5 {[%clk 0:00:05]}  dxc4 {[%clk 0:00:10]} 46. Bb8 {[%clk 0:00:06]}  Bc5 {[%clk 0:00:09]} 47. Bxa7 {[%clk 0:00:06]}  Kd7 {[%clk 0:00:09]} 48. Bb8 {[%clk 0:00:06]}  Kc8 {[%clk 0:00:10]} 49. Be5 {[%clk 0:00:06]}  b5 {[%clk 0:00:10]} 50. f4 {[%clk 0:00:02]}  g6 {[%clk 0:00:10]} 51. Kc1 {[%clk 0:00:03]}  Bf2 {[%clk 0:00:09]} 52. Kd2 {[%clk 0:00:02]}  Bxh4 {[%clk 0:00:09]} 53. Ke2 {[%clk 0:00:03]}  Bd8 {[%clk 0:00:09]} 54. Kf3 {[%clk 0:00:02]}  Bb6 {[%clk 0:00:10]} 55. Bd6 {[%clk 0:00:02]}  c5 {[%clk 0:00:09]} 56. Ke4 {[%clk 0:00:03]}  b4 {[%clk 0:00:09]} 57. Kd5 {[%clk 0:00:03]}  b3 {[%clk 0:00:10]} 58. cxb3 {[%clk 0:00:02]}  cxb3 {[%clk 0:00:11]} 59. Be5 {[%clk 0:00:03]}  h4 {[%clk 0:00:11]} 60. f5 {[%clk 0:00:03]}  gxf5 {[%clk 0:00:11]} 61. Kc4 {[%clk 0:00:03]}  Bc7 {[%clk 0:00:10]} 62. a7 {[%clk 0:00:02]}  Kb7 {[%clk 0:00:10]} 63. Bxc7 {[%clk 0:00:03]}  Kxa7 {[%clk 0:00:10]} 64. Kxb3 {[%clk 0:00:03]}  Kb7 {[%clk 0:00:11]} 65. Be5 {[%clk 0:00:03]}  Kc6 {[%clk 0:00:12]} 66. Kc4 {[%clk 0:00:03]}  Kb6 {[%clk 0:00:07]} 67. Bf4 {[%clk 0:00:03]}  Kc6 {[%clk 0:00:07]} 68. Be5 {[%clk 0:00:04]}  Kd7 {[%clk 0:00:07]} 69. Kxc5 {[%clk 0:00:04]}  Ke6 {[%clk 0:00:08]} 70. Bf4 {[%clk 0:00:04]}  Kf6 {[%clk 0:00:05]} 71. Kd5 {[%clk 0:00:04]}  Kg6 {[%clk 0:00:06]} 72. Ke5 {[%clk 0:00:05]}  Kh5 {[%clk 0:00:06]} 73. Kxf5 {[%clk 0:00:05]}  h3 {[%clk 0:00:07]} 74. Bg3 {[%clk 0:00:06]}  h2 {[%clk 0:00:08]} 75. Bxh2 {[%clk 0:00:06]} 1/2-1/2


[Site "https://www.chess.com"]